fUST/lending_fUST_20240713
["ID","MTS","AMOUNT","RATE_DAILY","PERIOD"]
[331928249,1720857044975,-1699.17,0.00027945,2]
[331928250,1720857044984,-500.0,0.00027945,2]
[331928251,1720857044994,-4745.72,0.00027945,2]
[331928252,1720857045005,-1727.69,0.00027945,2]
[331928253,1720857045014,-500.0,0.00027945,2]
[331928254,1720857045025,-316.51158362,0.00027958,2]
[331928255,1720857045035,-151.0,0.00027987,2]
[331928256,1720857045044,-151.0,0.00027987,2]
[331928257,1720857045053,-8249.40740869,0.0002799,2]
[331928258,1720857045062,-3237.96913115,0.0002799,3]
[331928259,1720857045072,-500.0,0.00027999,2]
[331928260,1720857045081,-500.0,0.00027999,2]
[331928261,1720857045091,-618.97803216,0.00028,2]
[331928262,1720857045100,-1818.41690417,0.00028,2]
[331928263,1720857045109,-12132.16383712,0.00028,30]
[331928264,1720857045118,-1000.0,0.00028,28]
[331928265,1720857045127,-150.0,0.00028072,2]
[331928266,1720857045136,-160.0,0.00028089,15]
[331928267,1720857045145,-220.35824594,0.00028098,2]
[331928268,1720857045154,-153.0,0.0002811,2]
[331928269,1720857045163,-150.0,0.00028135,2]
[331928270,1720857045174,-154.5944506,0.00028143,2]
[331928271,1720857045184,-154.5944506,0.00028194,2]
[331928272,1720857045193,-500.0,0.00028219,2]
[331928273,1720857045202,-500.0,0.00028219,2]
[331928274,1720857045211,-500.0,0.00028219,2]
[331928275,1720857045221,-1699.17,0.00028219,2]
[331928276,1720857045230,-500.0,0.00028219,2]
[331928277,1720857045240,-4745.72,0.00028219,2]
[331928278,1720857045249,-1727.69,0.00028219,2]
[331928279,1720857045259,-611.65,0.00028219,2]
[331928280,1720857045268,-155.38803879,0.00028269,2]
[331928281,1720857045277,-151.0,0.00028282,3]
[331928282,1720857045286,-151.0,0.00028282,3]
[331928283,1720857045296,-160.0,0.00028288,6]
[331928284,1720857045305,-160.0,0.00028288,5]
[331928285,1720857045315,-160.0,0.00028288,16]
[331928286,1720857045325,-297.78944187,0.00028288,5]
[331928287,1720857045335,-160.0,0.00028288,5]
[331928288,1720857045345,-154.5944506,0.00028363,2]
[331928289,1720857045355,-154.55690276,0.000284,24]
[331928290,1720857045365,-150.4447953,0.0002847,2]
[331928291,1720857045375,-500.0,0.00028493,2]
[331928292,1720857045386,-500.0,0.00028493,2]
[331928293,1720857045396,-500.0,0.00028493,2]
[331928294,1720857045406,-1699.17,0.00028493,2]
[331928295,1720857045416,-500.0,0.00028493,2]
[331928296,1720857045427,-4745.72,0.00028493,2]
[331928297,1720857045437,-1727.69,0.00028493,2]
[331928298,1720857045446,-151.0,0.00028577,3]
[331928299,1720857045456,-151.0,0.00028577,3]
[331928300,1720857045467,-899.50659563,0.00028605,2]
[331928301,1720857045478,-220.35824594,0.00028636,2]
[331928303,1720857045488,-152.94115716,0.00028645,2]
[331928304,1720857045498,-234.33269169,0.00028649,7]
[331928305,1720857045508,-261.0,0.00028666,120]
[331928306,1720857045518,-224.99030814,0.00028679,2]
[331928307,1720857045527,-316.51158362,0.00028694,2]
[331928308,1720857045537,-154.5944506,0.00028704,2]
[331928309,1720857045547,-220.35824594,0.0002873,2]
[331928310,1720857045556,-1407.0,0.00028739,2]
[331928311,1720857045567,-3237.96913115,0.0002876,3]
[331928312,1720857045577,-500.0,0.0002876,2]
[331928313,1720857045586,-6475.9382623,0.0002876,3]
[331928314,1720857045596,-500.0,0.00028766,2]
[331928315,1720857045605,-500.0,0.00028767,2]
[331928316,1720857045614,-500.0,0.00028767,2]
[331928317,1720857045624,-636.23190277,0.00028767,2]
[331928318,1720857045633,-1699.17,0.00028767,2]
[331928319,1720857045643,-500.0,0.00028767,2]
[331928320,1720857045652,-4745.72,0.00028767,2]
[331928321,1720857045661,-1727.69,0.00028767,2]
[331928322,1720857045672,-500.0,0.00028769,2]
[331928323,1720857045681,-500.0,0.00028769,2]
[331928324,1720857045691,-500.0,0.00028769,2]
[331928325,1720857045702,-500.0,0.00028769,2]
[331928326,1720857045711,-9212.029171,0.0002877,5]
[331928334,1720857045903,-500.0,0.00024657,2]
[331928335,1720857045912,-441.38759269,0.00024657,2]
[331928337,1720857045922,-12210.3944957,0.0002877,5]
[331928338,1720857045931,-30665.82515687,0.0002877,2]
[331928340,1720857045991,10000.0,0.0002525,120]
[331928342,1720857046605,-1221.27045,0.00024431,2]
[331928350,1720857757870,610.635225,0.00018899,2]
[331928351,1720857782119,217.84692174,0.00018899,2]
[331928352,1720857805301,154.94050244,0.00018899,2]
[331928354,1720857888617,217.84692174,0.00018899,2]
[331928356,1720857947459,1140.44295447,0.00018899,2]
[331928357,1720857957149,-1491.05500079,0.00019164,2]
[331928358,1720857957294,-877.32365565,0.00019164,2]
[331928359,1720857988647,1987.94718132,0.00018899,2]
[331928362,1720858002116,217.84692174,0.00018899,2]
[331928365,1720858011779,909.19310766,0.00018899,2]
[331928366,1720858014410,742.68276234,0.00018899,2]
[331928367,1720858070406,192.11901256,0.00016255,2]
[331928368,1720858076883,610.635225,0.00016255,2]
[331928374,1720858145468,154.57491897,0.00016255,2]
[331928375,1720858149303,-230.27750003,0.00018899,2]
[331928376,1720858149324,-154.59033561,0.00018899,2]
[331928378,1720858149346,-249.14909482,0.000189,2]
[331928379,1720858149366,-518.1114155,0.00019165,2]
[331928380,1720858149386,-2134.96934119,0.00019703,2]
[331928381,1720858149406,-300.0,0.00020999,2]
[331928382,1720858149427,-31.87798404,0.00021,2]
[331928383,1720858152103,-7762.12201596,0.00021,2]
[331928384,1720858152124,-174.541596,0.00021096,2]
[331928385,1720858152146,-1800.9426303,0.00022381,2]
[331928386,1720858152168,-158.29964009,0.0002243,2]
[331928387,1720858152191,-496.92701004,0.0002243,2]
[331928388,1720858162315,1436.35994433,0.00021917,2]
[331928389,1720858166259,154.57491897,0.0002243,2]
[331928390,1720858178545,3136.3351366,0.00019703,2]
[331928391,1720858178568,15462.00572442,0.00019703,2]
[331928392,1720858178590,2388.76003684,0.00019703,2]
[331928393,1720858185303,2129.50465136,0.00019165,2]
[331928394,1720858185623,217.72515829,0.00019703,2]
[331928395,1720858189958,180.41297184,0.00019703,2]
[331928396,1720858204810,154.57491897,0.00019703,2]
[331928397,1720858216382,507.46978775,0.00019703,2]
[331928431,1720858232503,-391.80627157,0.0002243,2]
[331928434,1720858232513,-228.54378529,0.0002243,2]
[331928436,1720858232523,-703.273989,0.0002347,2]
[331928438,1720858232532,-2129.50465136,0.00023882,2]
[331928440,1720858232543,-249.14909482,0.000239,2]
[331928442,1720858232553,-210.43288736,0.00023966,2]
[331928443,1720858232565,-909.83820532,0.00024362,2]
[331928540,1720858238201,-451.36009594,0.00024362,2]
[331928541,1720858238211,-1000.0,0.00024431,2]
[331928542,1720858238226,-360.16423676,0.00024481,2]
[331928543,1720858238236,-539.97673956,0.00024557,2]
[331928544,1720858238246,-346.43413335,0.00024656,2]
[331928545,1720858238255,-277.90945275,0.00024656,2]
[331928546,1720858238265,-606.339047,0.00024656,10]
[331928547,1720858238274,-172.6189773,0.00024657,2]
[331928548,1720858238284,-994.86459939,0.00024657,2]
[331928549,1720858238296,-500.0,0.00024657,2]
[331928550,1720858238306,-500.0,0.00024657,2]
[331928552,1720858238318,-500.0,0.00024657,2]
[331928553,1720858238328,-500.0,0.00024657,2]
[331928554,1720858238338,-502.55879199,0.00024657,2]
[331928555,1720858238350,-500.0,0.00024657,2]
[331928556,1720858238359,-503.33569763,0.00024657,2]
[331928557,1720858238368,-500.0,0.00024657,2]
[331928558,1720858238377,-503.08688821,0.00024657,2]
[331928559,1720858238386,-501.0748185,0.00024657,2]
[331928560,1720858238396,-589.1,0.00024657,2]
[331928561,1720858238406,-503.02878632,0.00024657,2]
[331928562,1720858238415,-564.08,0.00024657,2]
[331928563,1720858238424,-500.0,0.00024657,2]
[331928564,1720858238433,-500.0,0.00024657,2]
[331928565,1720858238443,-501.48248869,0.00024657,2]
[331928566,1720858238453,-500.0,0.00024657,2]
[331928567,1720858238462,-499.362028,0.00024657,2]
[331928568,1720858238472,-500.0,0.00024657,2]
[331928569,1720858238482,-501.29998895,0.00024657,2]
[331928570,1720858238491,-500.0,0.00024657,2]
[331928571,1720858238501,-500.0,0.00024657,2]
[331928572,1720858238511,-500.0,0.00024657,2]
[331928573,1720858238521,-503.62489896,0.00024657,2]
[331928574,1720858238531,-501.67607757,0.00024657,2]
[331928575,1720858238540,-502.50843139,0.00024657,2]
[331928576,1720858238550,-500.0,0.00024657,2]
[331928577,1720858238559,-504.60244159,0.00024657,2]
[331928578,1720858238570,-500.0,0.00024657,2]
[331928579,1720858238580,-559.20435716,0.00024657,2]
[331928580,1720858238590,-10.08859099,0.00024657,2]
[331928586,1720858241002,-277.04585036,0.00024657,2]
[331928619,1720858520946,67591.09496375,0.0002,10]
[331928622,1720858620563,10000.0,0.0002525,120]
[331928623,1720858638200,1856.99,0.0002525,120]
[331928627,1720858863328,154.57491897,0.00016255,2]
[331928628,1720858939232,1840.65159408,0.00016255,2]
[331928629,1720858940165,217.84692174,0.00016255,2]
[331928630,1720859000610,159.79374179,0.00016255,2]
[331928631,1720859032544,525.58539138,0.00016255,2]
[331928633,1720859051665,217.71632298,0.00016255,2]
[331928637,1720859176618,159.79374179,0.00016255,2]
[331928638,1720859206625,159.79374179,0.00016255,2]
[331928641,1720859232009,5075.00415882,0.00016255,2]
[331928642,1720859243141,-154.57491897,0.00018899,2]
[331928643,1720859243163,-1984.86728526,0.00019164,2]
[331928652,1720859295006,155.97469712,0.00016255,2]
[331928658,1720859335806,385.79995704,0.00016255,2]
[331928659,1720859345096,-3138.06906429,0.00019164,2]
[331928660,1720859345117,-159.59139767,0.00019165,2]
[331928661,1720859345139,-300.0,0.00019999,2]
[331928662,1720859345159,-300.0,0.00019999,2]
[331928663,1720859345179,-1000.0,0.0002,2]
[331928664,1720859345202,-577.16338069,0.0002,2]
[331928665,1720859345222,-764.43027422,0.0002,2]
[331928666,1720859345241,-225.9011813,0.0002,2]
[331928667,1720859345265,-151.18583801,0.0002,2]
[331928668,1720859345287,-405.0203601,0.00020897,2]
[331928669,1720859345309,-188.7329246,0.0002105,2]
[331928670,1720859345330,-240.357472,0.00021096,2]
[331928671,1720859345351,-7856.3779531,0.00021131,2]
[331928672,1720859345373,-3404.4248869,0.00021404,2]
[331928673,1720859345394,-163.239962,0.00021692,2]
[331928674,1720859345417,-275.864617,0.00021754,2]
[331928675,1720859345438,-300.0,0.00021777,2]
[331928676,1720859345461,-250.0,0.00021782,2]
[331928677,1720859345482,-166.666666,0.00021918,2]
[331928678,1720859345502,-4489.3134924,0.00021936,2]
[331928679,1720859345523,-3758.6148991,0.00021964,2]
[331928680,1720859345549,-420.0,0.00021999,2]
[331928682,1720859354328,183.04969827,0.00019899,2]
[331928683,1720859356388,194.44956817,0.00019703,2]
[331928684,1720859369132,-663.28777002,0.0002243,2]
[331928685,1720859369153,-155.51415868,0.0002243,2]
[331928686,1720859369174,-166.666666,0.00022431,2]
[331928687,1720859369901,813.97106147,0.0002243,3]
[331928701,1720859429999,1000.0,0.0002243,2]
[331928750,1720859432427,-224.11988383,0.00022941,2]
[331928752,1720859432436,-166.666666,0.00022944,2]
[331928754,1720859432445,-166.666666,0.00023456,2]
[331928756,1720859432455,-621.68538545,0.0002359,2]
[331928758,1720859432464,-72.3393278,0.00023882,2]
[331928760,1720859432476,-84.10680282,0.00023882,2]
[331928762,1720859432485,-217.89319718,0.00023882,2]
[331928848,1720859438657,-493.97877951,0.00023455,2]
[331928849,1720859438668,-22.66441699,0.00023882,2]
[331928850,1720859438678,-813.14107465,0.00023882,3]
[331928851,1720859438688,-225.9011813,0.00023882,2]
[331928852,1720859438697,-534.15056186,0.00023966,2]
[331928853,1720859438707,-1042.97057686,0.00023966,2]
[331928854,1720859438718,-158.35036999,0.00023968,2]
[331928855,1720859438727,-266.53758996,0.00023968,2]
[331928856,1720859438737,-163.440166,0.00023968,2]
[331928857,1720859438747,-247.87133273,0.00023968,2]
[331928858,1720859438759,-155.82095366,0.00023968,2]
[331928859,1720859438768,-293.51863292,0.00023968,2]
[331928860,1720859438777,-166.666666,0.00023969,2]
[331928861,1720859438787,-243.42524297,0.00024391,2]
[331928862,1720859438798,-1361.19830126,0.00024457,2]
[331928863,1720859438808,-300.0,0.0002448,2]
[331928864,1720859438817,-156.80132676,0.00024481,2]
[331928865,1720859438826,-178.99164033,0.00024481,2]
[331928866,1720859438836,-154.57491897,0.00024481,2]
[331928867,1720859438845,-166.666666,0.00024482,2]
[331928868,1720859438854,-170.73875575,0.00024497,2]
[331928869,1720859438863,-81.95164752,0.00024557,2]
[331928870,1720859438884,-156.44613062,0.00023455,2]
[331928871,1720859438893,-809.97812369,0.00024557,2]
[331928872,1720859438903,-3082.23938839,0.00024647,3]
[331928873,1720859438912,-216.99135792,0.00024657,2]
[331928874,1720859438921,-500.0,0.00024657,2]
[331928875,1720859438931,-235.71,0.00024657,2]
[331928876,1720859438941,-500.0,0.00024657,2]
[331928877,1720859438950,-365.63884625,0.00024657,2]
[331928878,1720859438959,-506.80800595,0.00024657,2]
[331928879,1720859438969,-500.0,0.00024657,2]
[331928880,1720859438978,-1446.03,0.00024657,2]
[331928881,1720859438987,-500.0,0.00024657,2]
[331928882,1720859438997,-500.0,0.00024657,2]
[331928883,1720859439006,-500.0,0.00024657,2]
[331928884,1720859439015,-500.0,0.00024657,2]
[331928885,1720859439024,-500.0,0.00024657,2]
[331928886,1720859439034,-500.0,0.00024657,2]
[331928887,1720859439044,-500.0,0.00024657,2]
[331928888,1720859439053,-507.50561512,0.00024657,2]
[331928889,1720859439063,-500.0,0.00024657,2]
[331928890,1720859439072,-500.0,0.00024657,2]
[331928891,1720859439081,-500.0,0.00024657,2]
[331928892,1720859439090,-500.0,0.00024657,2]
[331928893,1720859439100,-500.0,0.00024657,2]
[331928894,1720859439109,-201.73188513,0.00024657,2]
[331928895,1720859439118,-500.0,0.00024657,2]
[331928896,1720859439127,-500.0,0.00024657,2]
[331928897,1720859439136,-504.10159939,0.00024657,2]
[331928898,1720859439146,-500.0,0.00024657,2]
[331928899,1720859439155,-500.0,0.00024657,2]
[331928900,1720859439165,-500.0,0.00024657,2]
[331928901,1720859439174,-495.87183754,0.00024657,2]
[331928902,1720859439183,-507.51825865,0.00024657,2]
[331928903,1720859439193,-500.0,0.00024657,2]
[331928904,1720859439202,-500.0,0.00024657,2]
[331928905,1720859439211,-500.0,0.00024657,2]
[331928906,1720859439220,-500.0,0.00024657,2]
[331928907,1720859439230,-564.78454253,0.00024657,2]
[331928908,1720859439239,-500.0,0.00024657,2]
[331928909,1720859439248,-500.0,0.00024657,2]
[331928910,1720859439257,-406.52084477,0.00024657,2]
[331928911,1720859439266,-500.00844187,0.00024657,2]
[331928912,1720859439276,-500.0,0.00024657,2]
[331928913,1720859439285,-500.0,0.00024657,2]
[331928914,1720859439296,-500.0,0.00024657,2]
[331928915,1720859439305,-501.0455392,0.00024657,2]
[331928916,1720859439314,-200.37730886,0.00024657,2]
[331928917,1720859439324,-524.96,0.00024657,2]
[331928918,1720859439333,-500.0,0.00024657,2]
[331928919,1720859439342,-505.05585706,0.00024657,2]
[331928920,1720859439351,-500.0,0.00024657,2]
[331928921,1720859439361,-500.0,0.00024657,2]
[331928922,1720859439370,-504.08252969,0.00024657,2]
[331928923,1720859439379,-502.59769331,0.00024657,2]
[331928924,1720859439388,-500.0,0.00024657,2]
[331928925,1720859439398,-500.0,0.00024657,2]
[331928926,1720859439407,-551.75174055,0.00024657,2]
[331928927,1720859439416,-523.03,0.00024657,2]
[331928928,1720859439426,-500.0,0.00024657,2]
[331928929,1720859439436,-569.01167298,0.00024657,2]
[331928930,1720859439445,-250.59313566,0.00024657,2]
[331928931,1720859439454,-633.71,0.00024657,2]
[331928932,1720859439464,-500.0,0.00024657,2]
[331928933,1720859439473,-500.0,0.00024657,2]
[331928934,1720859439482,-500.0,0.00024657,2]
[331928935,1720859439491,-500.0,0.00024657,2]
[331928936,1720859439501,-500.0,0.00024657,2]
[331928937,1720859439510,-500.0,0.00024657,2]
[331928938,1720859439519,-500.0,0.00024657,2]
[331928939,1720859439528,-547.67,0.00024657,2]
[331928940,1720859439537,-500.0,0.00024657,2]
[331928941,1720859439546,-500.0,0.00024657,2]
[331928942,1720859439555,-555.49,0.00024657,2]
[331928943,1720859439565,-500.0,0.00024657,2]
[331928944,1720859439578,-500.0,0.00024657,2]
[331928945,1720859439588,-500.0,0.00024657,2]
[331928946,1720859439598,-501.57762669,0.00024657,2]
[331928947,1720859439608,-500.0,0.00024657,2]
[331928948,1720859439619,-500.0,0.00024657,2]
[331928949,1720859439629,-500.0,0.00024657,2]
[331928950,1720859439639,-500.0,0.00024657,2]
[331928951,1720859439648,-500.0,0.00024657,2]
[331928952,1720859439660,-504.08796653,0.00024657,2]
[331928953,1720859439670,-500.0,0.00024657,2]
[331928954,1720859439679,-500.0,0.00024657,2]
[331928955,1720859439689,-502.05236363,0.00024657,2]
[331928956,1720859439699,-500.0,0.00024657,2]
[331928957,1720859439709,-500.0,0.00024657,2]
[331928958,1720859439719,-500.0,0.00024657,2]
[331928959,1720859439728,-501.18651497,0.00024657,2]
[331928960,1720859439739,-500.0,0.00024657,2]
[331928961,1720859439748,-500.0,0.00024657,2]
[331928962,1720859439758,-502.88755533,0.00024657,2]
[331928963,1720859439767,-594.34,0.00024657,2]
[331928965,1720859439776,-502.69921746,0.00024657,2]
[331928967,1720859439785,-1274.38,0.00024657,2]
[331928968,1720859439795,-500.0,0.00024657,2]
[331928969,1720859439804,-395.66048169,0.00024657,2]
[331928970,1720859439814,-500.0,0.00024657,2]
[331928971,1720859439822,-3559.29,0.00024657,2]
[331928972,1720859439832,-500.0,0.00024657,2]
[331928973,1720859439841,-500.0,0.00024657,2]
[331928974,1720859439850,-205.45547941,0.00024657,2]
[331928975,1720859439859,-500.0,0.00024657,2]
[331928976,1720859439868,-500.0,0.00024657,2]
[331928977,1720859439877,-500.0,0.00024657,2]
[331928978,1720859439887,-500.0,0.00024657,2]
[331928979,1720859439896,-500.0,0.00024657,2]
[331928980,1720859439905,-502.33441454,0.00024657,2]
[331928981,1720859439915,-500.0,0.00024657,2]
[331928982,1720859439924,-500.0,0.00024657,2]
[331928983,1720859439934,-500.0,0.00024657,2]
[331928984,1720859439943,-500.0,0.00024657,2]
[331928985,1720859439953,-1367.75,0.00024657,2]
[331928986,1720859439964,-625.65,0.00024657,2]
[331928987,1720859439973,-500.0,0.00024657,2]
[331928988,1720859439982,-500.0,0.00024657,2]
[331928989,1720859439991,-502.68631255,0.00024657,2]
[331928990,1720859440001,-500.0,0.00024657,2]
[331928991,1720859440010,-588.44936585,0.00024657,2]
[331928992,1720859440019,-500.0,0.00024657,2]
[331928993,1720859440029,-500.0,0.00024657,2]
[331928994,1720859440038,-500.0,0.00024657,2]
[331928995,1720859440049,-500.0,0.00024657,2]
[331928996,1720859440058,-500.0,0.00024657,2]
[331928997,1720859440067,-500.0,0.00024657,2]
[331928998,1720859440077,-500.0,0.00024657,2]
[331928999,1720859440087,-500.0,0.00024657,2]
[331929000,1720859440097,-500.0,0.00024657,2]
[331929002,1720859440107,-568.8,0.00024657,2]
[331929004,1720859440116,-545.86,0.00024657,2]
[331929005,1720859440126,-500.0,0.00024657,2]
[331929006,1720859440134,-500.0,0.00024657,2]
[331929007,1720859440143,-500.0,0.00024657,2]
[331929008,1720859440153,-500.0,0.00024657,2]
[331929009,1720859440162,-503.17975422,0.00024657,2]
[331929010,1720859440171,-500.0,0.00024657,2]
[331929011,1720859440180,-503.11592645,0.00024657,2]
[331929012,1720859440189,-500.0,0.00024657,2]
[331929013,1720859440199,-500.0,0.00024657,2]
[331929014,1720859440208,-500.0,0.00024657,2]
[331929015,1720859440218,-500.0,0.00024657,2]
[331929016,1720859440226,-500.0,0.00024657,2]
[331929017,1720859440236,-500.3680087,0.00024657,2]
[331929018,1720859440245,-500.0,0.00024657,2]
[331929019,1720859440255,-501.83246894,0.00024657,2]
[331929020,1720859440264,-500.0,0.00024657,2]
[331929022,1720859440273,-557.7,0.00024657,2]
[331929023,1720859440282,-500.0,0.00024657,2]
[331929024,1720859440292,-500.0,0.00024657,2]
[331929025,1720859440301,-500.0,0.00024657,2]
[331929026,1720859440310,-500.0,0.00024657,2]
[331929027,1720859440319,-500.0,0.00024657,2]
[331929029,1720859440328,-380.0,0.00024658,2]
[331929030,1720859440338,-200.0,0.00024658,15]
[331929032,1720859440347,-500.0,0.00024658,2]
[331929033,1720859440356,-500.0,0.00024658,2]
[331929034,1720859440365,-500.0,0.00024658,2]
[331929035,1720859440375,-500.0,0.00024661,2]
[331929036,1720859440384,-500.0,0.00024682,2]
[331929038,1720859440393,-500.0,0.00024702,2]
[331929039,1720859440405,-500.0,0.00024702,2]
[331929040,1720859440416,-500.0,0.00024761,2]
[331929041,1720859440426,-500.0,0.00024762,2]
[331929042,1720859440435,-620.08426927,0.0002477,2]
[331929043,1720859440445,-25123.42,0.0002477,3]
[331929045,1720859440454,-500.0,0.00024772,2]
[331929047,1720859440463,-30148.11,0.0002478,3]
[331929048,1720859440472,-210.21617097,0.00024789,2]
[331929049,1720859440481,-500.0,0.00024789,2]
[331929050,1720859440490,-204.30897043,0.00024789,2]
[331929051,1720859440499,-500.0,0.00024789,2]
[331929053,1720859440508,-312.55670096,0.00024789,2]
[331929054,1720859440517,-275.98979911,0.00024789,2]
[331929055,1720859440526,-500.0,0.00024789,2]
[331929056,1720859440535,-471.72052519,0.00024789,2]
[331929057,1720859440545,-36177.73,0.0002479,3]
[331929058,1720859440555,-194.69079961,0.000248,5]
[331929059,1720859440565,-27075.20266405,0.000248,2]
[331929060,1720859440579,-12999.211299,0.000248,2]
[331929061,1720859440588,-3082.23938839,0.00024815,3]
[331929062,1720859440598,-500.0,0.00024824,2]
[331929063,1720859440607,-500.0,0.00024825,2]
[331929064,1720859440619,-500.0,0.00024825,2]
[331929065,1720859440628,-153.0,0.00024825,2]
[331929066,1720859440638,-153.0,0.00024825,2]
[331929067,1720859440647,-153.0,0.00024825,2]
[331929068,1720859440658,-153.0,0.00024825,2]
[331929069,1720859440667,-153.0,0.00024825,2]
[331929070,1720859440677,-153.0,0.00024825,2]
[331929071,1720859440686,-153.0,0.00024825,2]
[331929072,1720859440695,-153.0,0.00024825,2]
[331929073,1720859440705,-153.0,0.00024825,2]
[331929074,1720859440714,-153.0,0.00024825,2]
[331929075,1720859440723,-273.0,0.00024825,2]
[331929076,1720859440732,-273.0,0.00024825,2]
[331929077,1720859440741,-273.0,0.00024825,2]
[331929078,1720859440751,-273.0,0.00024825,2]
[331929079,1720859440760,-273.0,0.00024825,2]
[331929080,1720859440868,-273.0,0.00024825,2]
[331929081,1720859440881,-273.0,0.00024825,2]
[331929082,1720859440890,-273.0,0.00024825,2]
[331929083,1720859440899,-273.0,0.00024825,2]
[331929084,1720859440909,-273.0,0.00024825,2]
[331929085,1720859440919,-273.0,0.00024825,2]
[331929086,1720859440929,-273.0,0.00024825,2]
[331929087,1720859440938,-153.0,0.00024825,2]
[331929088,1720859440949,-153.0,0.00024825,2]
[331929089,1720859440960,-153.0,0.00024825,2]
[331929090,1720859440970,-153.0,0.00024825,2]
[331929091,1720859440978,-153.0,0.00024825,2]
[331929092,1720859440987,-153.0,0.00024825,2]
[331929093,1720859440996,-153.0,0.00024825,2]
[331929094,1720859441005,-153.0,0.00024825,2]
[331929095,1720859441014,-153.0,0.00024825,2]
[331929096,1720859441024,-153.0,0.00024825,2]
[331929097,1720859441033,-153.0,0.00024825,2]
[331929098,1720859441042,-153.0,0.00024825,2]
[331929099,1720859441051,-273.0,0.00024825,2]
[331929100,1720859441061,-273.0,0.00024825,2]
[331929101,1720859441070,-273.0,0.00024825,2]
[331929102,1720859441079,-273.0,0.00024825,2]
[331929103,1720859441089,-273.0,0.00024825,2]
[331929104,1720859441097,-273.0,0.00024825,2]
[331929105,1720859441106,-273.0,0.00024825,2]
[331929106,1720859441115,-273.0,0.00024825,2]
[331929107,1720859441125,-273.0,0.00024825,2]
[331929108,1720859441134,-273.0,0.00024825,2]
[331929109,1720859441143,-273.0,0.00024825,2]
[331929110,1720859441152,-273.0,0.00024825,2]
[331929111,1720859441161,-273.0,0.00024825,2]
[331929112,1720859441170,-153.0,0.00024825,2]
[331929113,1720859441179,-153.0,0.00024825,2]
[331929114,1720859441188,-153.0,0.00024825,2]
[331929115,1720859441198,-153.0,0.00024825,2]
[331929116,1720859441207,-153.0,0.00024825,2]
[331929117,1720859441216,-153.0,0.00024825,2]
[331929118,1720859441225,-153.0,0.00024825,2]
[331929119,1720859441234,-153.0,0.00024825,2]
[331929120,1720859441243,-153.0,0.00024825,2]
[331929121,1720859441252,-153.0,0.00024825,2]
[331929122,1720859441261,-153.0,0.00024825,2]
[331929123,1720859441270,-153.0,0.00024825,2]
[331929124,1720859441279,-153.0,0.00024825,2]
[331929125,1720859441288,-273.0,0.00024825,2]
[331929126,1720859441297,-273.0,0.00024825,2]
[331929127,1720859441306,-273.0,0.00024825,2]
[331929128,1720859441316,-273.0,0.00024825,2]
[331929129,1720859441326,-273.0,0.00024825,2]
[331929130,1720859441335,-273.0,0.00024825,2]
[331929131,1720859441345,-273.0,0.00024825,2]
[331929132,1720859441354,-273.0,0.00024825,2]
[331929133,1720859441364,-273.0,0.00024825,2]
[331929134,1720859441373,-273.0,0.00024825,2]
[331929135,1720859441382,-273.0,0.00024825,2]
[331929136,1720859441391,-273.0,0.00024825,2]
[331929137,1720859441401,-273.0,0.00024825,2]
[331929138,1720859441410,-273.0,0.00024825,2]
[331929139,1720859441419,-153.0,0.00024825,2]